Cogmind - Beta 14 @@@ ROGUE MODE // 2025.03.26 @ 23:41:24 Player: mournfully Result: Self-destructed Performance ------------- Evolutions (2) 1000 Regions Visited (5) 1000 Robots Destroyed (30) 150 Value Destroyed (536) 536 Prototype IDs (25) 500 Alien Tech Used (0) 0 Bonus (300) 300 TOTAL SCORE: 3486 Bonus ------- Aligned with FarCom 300 Cogmind --------- Core Integrity 532/550 Matter 282/300 Energy 250/250 System Corruption 0% Temperature Warm (113) Movement Treading (240) Ox1 Location -8/Materials Parts ------- > --- POWER (1) -------- Ion Engine > --- PROPULSION (4) --- Light Treads > --- UTILITY (4) ------ Large Storage Unit Seismic Detector Light Armor Plating > --- WEAPON (2) ------- Particle Gun Light Assault Rifle > --- INVENTORY (15) --- Ion Engine Light Treads Flight Unit Flight Unit Flight Unit Structural Scanner Signal Interpreter Skeleton Box Beam Rifle Light Assault Rifle Light Cannon Battle Cannon Mining Claw Peak State ------------ > --- POWER ------------ Ion Engine > --- PROPULSION ------- Light Treads Light Treads > --- UTILITY ---------- Large Storage Unit Seismic Detector Light Armor Plating > --- WEAPON ----------- Particle Gun Light Assault Rifle > --- INVENTORY -------- Ion Engine Light Treads Flight Unit Flight Unit Flight Unit Structural Scanner Signal Interpreter Skeleton Box Beam Rifle Light Assault Rifle Light Cannon Battle Cannon Mining Claw [Rating: 11] Favorites ----------- Power Ion Engine Engine Ion Engine Propulsion Light Treads Treads Light Treads Utility Seismic Detector Device Seismic Detector Storage Large Storage Unit Protection Light Armor Plating Weapon Light Assault Rifle Energy Gun Particle Gun Energy Cannon Beam Cannon Ballistic Gun Light Assault Rifle Ballistic Cannon Battle Cannon Build | -11 -10 -10 -10 -9 -8 ------- Run | Yrd Mat Min Exi Min Mat Slots Evolved 4 | . . . . . 4 Power . | . . . . . . Propulsion 2 | . . . . . 2 Utility 2 | . . . . . 2 Weapon . | . . . . . . Parts Attached 30 | 8 11 6 2 . 3 Power 3 | 1 1 . 1 . . Engine 3 | 1 1 . 1 . . Core . | . . . . . . Reactor . | . . . . . . Propulsion 7 | 2 4 . 1 . . Treads 7 | 2 4 . 1 . . Leg . | . . . . . . Wheel . | . . . . . . Hover . | . . . . . . Flight . | . . . . . . Utility 7 | 2 2 2 . . 1 Device 1 | 1 . . . . . Storage 5 | 1 2 2 . . . Processor . | . . . . . . Hackware . | . . . . . . Protection 1 | . . . . . 1 Artifact . | . . . . . . Weapon 13 | 3 4 4 . . 2 Energy Gun 4 | 1 2 1 . . . Energy Cannon 1 | . . 1 . . . Ballistic Gun 7 | 2 2 2 . . 1 Ballistic Cannon 1 | . . . . . 1 Launcher . | . . . . . . Special Weapon . | . . . . . . Impact Weapon . | . . . . . . Slashing Weapon . | . . . . . . Piercing Weapon . | . . . . . . Special Melee Weapon . | . . . . . . Unidentified Prototypes . | . . . . . . Parts Lost 1 | . . . . . 1 Power . | . . . . . . Propulsion 1 | . . . . . 1 Utility . | . . . . . . Weapon . | . . . . . . Highest Loss Streak 1 | . . . . . 1 To Critical Strikes . | . . . . . . Average Slot Usage (%) 97 | . 99 99 100 100 63 Engine 13 | . 14 14 14 14 9 Treads 27 | . 27 28 28 28 11 Device 13 | . 14 14 14 14 9 Storage 13 | . 14 14 14 14 9 Energy Gun 8 | . 4 8 14 14 9 Ballistic Gun 18 | . 23 18 14 14 7 Peak Build Rating 11 | 7 9 9 10 10 11 Average Rating 8 | 5 7 8 9 9 10 On Entrance 7 | . 7 8 9 9 10 Naked Turns . | . . . . . . Heaviest Build 33 | 14 31 30 30 30 33 Greatest Support 40 | 40 40 40 40 40 40 Greatest Overweight (x) 6 | . 6 . . . 1 Average Overweight (x) . | . . . . . . Largest Inventory Capacity 25 | 8 15 25 15 15 15 Average Capacity 13 | 7 11 15 15 15 15 Most Carried 15 | 2 11 15 14 14 14 Average Carried 10 | 1 7 12 13 13 13 Final Capacity 15 | 8 15 15 15 15 15 Final Carried 14 | 1 11 13 13 14 13 Class Distribution -------------------- 63% | Scavenger-Mutant 36% | Mutant Dominant Class ---------------- Mutant | -10/Materials Scavenger-Mutant | -10/Mines Scavenger-Mutant | -10/Exiles Scavenger-Mutant | -9/Mines Mutant | -8/Materials Resources | -11 -10 -10 -10 -9 -8 ----------- Run | Yrd Mat Min Exi Min Mat Matter Collected 709 | 299 233 117 . 20 40 Remotely . | . . . . . . Salvage Created 808 | 111 364 256 . . 77 Parts 66 | 8 38 20 . . . Haulers Intercepted 1 | . 1 . . . . Recyclers Shooed . | . . . . . . Parts Field Recycled . | . . . . . . Retrieved Matter . | . . . . . . Parts Self-Destructed . | . . . . . . Prevented . | . . . . . . Kills | -11 -10 -10 -10 -9 -8 ------- Run | Yrd Mat Min Exi Min Mat Combat Hostiles Destroyed 20 | . 10 8 . . 2 Guns 19 | . 10 8 . . 1 Cannons 1 | . . . . . 1 Classes Destroyed 9 | 2 6 1 . . . Worker 3 | . 1 2 . . . Tunneler 2 | 1 . 1 . . . Hauler 1 | . 1 . . . . Recycler 1 | 1 . . . . . Operator 1 | . 1 . . . . Watcher 2 | . 2 . . . . Swarmer 12 | . 6 6 . . . Grunt 6 | . 4 . . . 2 Sentry 2 | . . 2 . . . Best Kill Streak 5 | 1 5 4 . . 2 Combat Bots Only 5 | . 5 3 . . 2 Max Kills in Single Turn 2 | 1 2 2 . . 1 Gunslinging 1 | . . 1 . . . Exploded . | . . . . . . Melee . | . . . . . . Uniques/NPCs Destroyed . | . . . . . . Combat | -11 -10 -10 -10 -9 -8 -------- Run | Yrd Mat Min Exi Min Mat Hostile Shots Fired 109 | . 45 37 . . 27 Missed 35 | . 16 12 . . 7 Damage Taken 879 | . 291 284 . . 304 Core 68 | . 32 18 . . 18 Absorbed by Shields . | . . . . . . Core Remaining (%) 90 | 100 . . . 80 . Volleys Fired 74 | 6 34 21 . . 13 Largest 2 | 2 2 2 . . 2 Hottest 104 | 60 85 85 . . 104 Shots Fired 146 | 11 67 42 . . 26 Gun 141 | 11 67 42 . . 21 Cannon 5 | . . . . . 5 Launcher . | . . . . . . Special . | . . . . . . Kinetic 120 | 9 59 39 . . 13 Thermal 26 | 2 8 3 . . 13 Explosive . | . . . . . . Electromagnetic . | . . . . . . Robot Hit Streak 16 | 5 6 16 . . 11 Robot Miss Streak 3 | 1 3 3 . . 1 Penetration Max . | . . . . . . Secondary Targets 3 | . 1 2 . . . Max Gunslinging Chain 1 | . 1 1 . . . Shots Hit Robots 100 | 8 39 30 . . 23 Core Hits 48 | 4 22 14 . . 8 Critical Kills . | . . . . . . Critical Parts Destroyed . | . . . . . . Critical Strikes . | . . . . . . Melee Attacks . | . . . . . . Impact . | . . . . . . Slashing . | . . . . . . Piercing . | . . . . . . Sneak Attacks . | . . . . . . Combat Hostiles . | . . . . . . Follow-up Attacks . | . . . . . . Damage Inflicted 1201 | 93 506 295 . . 307 Guns 1087 | 93 506 290 . . 198 Cannons 109 | . . . . . 109 Explosions . | . . . . . . Melee . | . . . . . . Ramming 5 | . . 5 . . . Kinetic 889 | 69 418 255 . . 147 Thermal 307 | 24 88 35 . . 160 Explosive . | . . . . . . Electromagnetic . | . . . . . . Impact . | . . . . . . Slashing . | . . . . . . Piercing . | . . . . . . Highest Corruption . | . . . . . . Average Corruption . | . . . . . . Corruption Purged . | . . . . . . Corruption Blocked . | . . . . . . Overload Shots . | . . . . . . Overflow Damage 1 | . . . . . 1 Projectiles 1 | . . . . . 1 Explosions . | . . . . . . Melee . | . . . . . . Knockbacks 4 | . . . . . 4 Impact . | . . . . . . Kinetic 3 | . . . . . 3 Secondary 1 | . . . . . 1 Self-Inflicted Damage . | . . . . . . Shots . | . . . . . . Rammed 2 | . . 2 . . . Targets Rammed 3 | . . 3 . . . Kicked . | . . . . . . Crushed 1 | . . 1 . . . Highest Temperature 276 | . 96 68 . . 276 Average Temperature 65 | . 25 24 . . 118 Received Heat Transfer 264 | . 102 72 . . 90 Siege Activations . | . . . . . . Robots Corrupted . | . . . . . . Combat Hostiles . | . . . . . . Parts Fried . | . . . . . . Impact Corruptions . | . . . . . . Robots Melted . | . . . . . . Combat Hostiles . | . . . . . . Parts Melted . | . . . . . . Heat Transferred 716 | 50 185 74 . . 407 Parts Sabotaged . | . . . . . . Parts Stolen . | . . . . . . Parts Stripped . | . . . . . . Power Chain Reactions . | . . . . . . Alert | -11 -10 -10 -10 -9 -8 ------- Run | Yrd Mat Min Exi Min Mat Peak Influence 231 | 10 231 221 . . 45 Initial 6 | . 6 6 . . . Average 57 | 4 91 59 . . 22 Maximum Alert Level 1 | . 1 1 . . . Low Security (%) 96 | 100 98 93 . 100 100 Level 1 3 | . 1 6 . . . Level 2 . | . . . . . . Level 3 . | . . . . . . Level 4 . | . . . . . . Level 5 . | . . . . . . High Security . | . . . . . . Max Security . | . . . . . . Squads Dispatched 1 | . 1 . . . . Investigation . | . . . . . . Extermination . | . . . . . . Reinforcement 1 | . 1 . . . . Assault . | . . . . . . Garrison . | . . . . . . Intercept . | . . . . . . Searches Triggered . | . . . . . . Construction Impeded . | . . . . . . Haulers Reinforced . | . . . . . . Active Scanning Responses . | . . . . . . Cargo Convoy Interrupts . | . . . . . . Stealth | -11 -10 -10 -10 -9 -8 --------- Run | Yrd Mat Min Exi Min Mat Distress Signals 2 | . 1 . . 1 . Communications Jammed . | . . . . . . Distress Signals . | . . . . . . Times Spotted 25 | . 14 8 . . 3 Peak Tracking Total 4 | . 4 3 . . 2 Tactical Retreats 1 | . 1 . . . . Traps | -11 -10 -10 -10 -9 -8 ------- Run | Yrd Mat Min Exi Min Mat Traps Triggered 2 | . 2 . . . . Indirectly . | . . . . . . Trap Hack Attempts . | . . . . . . Triggered . | . . . . . . Disarmed . | . . . . . . Reprogrammed . | . . . . . . Reused . | . . . . . . Traps Extracted . | . . . . . . Installed . | . . . . . . Triggered . | . . . . . . Machines | -11 -10 -10 -10 -9 -8 ---------- Run | Yrd Mat Min Exi Min Mat Machines Disabled 1 | . 1 . . . . Max in Single Turn 1 | . 1 . . . . Machines Repaired . | . . . . . . Machines Dismantled . | . . . . . . Machines Sabotaged . | . . . . . . Overloaded Fab Kills . | . . . . . . Hacking | -11 -10 -10 -10 -9 -8 --------- Run | Yrd Mat Min Exi Min Mat Machines Accessed 8 | . 7 . 1 . . Terminals 7 | . 7 . . . . Fabricators . | . . . . . . Repair Stations . | . . . . . . Recycling Units . | . . . . . . Scanalyzers . | . . . . . . Garrison Access . | . . . . . . Total Hacks 17 | . 16 . 1 . . Successful 6 | . 5 . 1 . . Failed 10 | . 10 . . . . Catastrophic 2 | . 2 . . . . Database Lockouts 1 | . 1 . . . . Manual 9 | . 8 . 1 . . Terminals 16 | . 16 . . . . Fabricators . | . . . . . . Repair Stations . | . . . . . . Recycling Units . | . . . . . . Scanalyzers . | . . . . . . Garrison Access . | . . . . . . Terminal Hacks 4 | . 3 . 1 . . Prototype ID Bank 1 | . 1 . . . . Hauler Manifests 1 | . 1 . . . . Registered Components 1 | . 1 . . . . Derelict Proto ID Bank 1 | . . . 1 . . Fabricator Hacks . | . . . . . . Repair Station Hacks . | . . . . . . Recycling Unit Hacks . | . . . . . . Scanalyzer . | . . . . . . Garrison Access Hacks . | . . . . . . Unauthorized Hacks 2 | . 2 . . . . Terminals 2 | . 2 . . . . Botnet 2 | . 2 . . . . Fabricators . | . . . . . . Repair Stations . | . . . . . . Recycling Units . | . . . . . . Scanalyzers . | . . . . . . Garrison Access . | . . . . . . Data Cores Recovered 1 | . 1 . . . . Used . | . . . . . . Hacking Detections 6 | . 6 . . . . Full Trace Events . | . . . . . . Feedback Events . | . . . . . . Feedback Blocked . | . . . . . . Robot Schematics Acquired . | . . . . . . Robots Built . | . . . . . . Authchips . | . . . . . . Time . | . . . . . . Total Robot Build Rating . | . . . . . . Part Schematics Acquired . | . . . . . . Parts Built . | . . . . . . Authchips . | . . . . . . Time . | . . . . . . Total Part Build Rating . | . . . . . . Parts Repaired . | . . . . . . Time . | . . . . . . Parts Recycled . | . . . . . . Recycled Matter . | . . . . . . Retrieved Matter . | . . . . . . Retrieved Components . | . . . . . . Parts Scanalyzed . | . . . . . . Part Schematics Acquired . | . . . . . . Parts Damaged . | . . . . . . Bothacking | -11 -10 -10 -10 -9 -8 ------------ Run | Yrd Mat Min Exi Min Mat Used RIF Installer . | . . . . . . Robots Hacked . | . . . . . . Non-combat . | . . . . . . Combat . | . . . . . . Robot Hacks Applied . | . . . . . . Relay Couplers Released . | . . . . . . Fabnet Peak Effective % . | . . . . . . Robots Rewired . | . . . . . . Allies Hacked . | . . . . . . Hacks Repelled . | . . . . . . Allies | -11 -10 -10 -10 -9 -8 -------- Run | Yrd Mat Min Exi Min Mat Total Allies 3 | . . 3 . . . Largest Group 3 | . . 3 . . . Highest-Rated Group 40 | . . 40 . . . Highest-Rated Ally 16 | . . 16 . . . Total Orders 3 | . . 3 . . . STAY 3 | . . 3 . . . Ally Attacks . | . . . . . . Total Damage . | . . . . . . Kills . | . . . . . . Allies Corrupted . | . . . . . . Allies Melted . | . . . . . . Intel | -11 -10 -10 -10 -9 -8 ------- Run | Yrd Mat Min Exi Min Mat Robot Analysis Total . | . . . . . . Derelict Logs Recovered 3 | . . 2 . 1 . Drone Launches . | . . . . . . Drone Recoveries . | . . . . . . Exploration | -11 -10 -10 -10 -9 -8 ------------- Run | Yrd Mat Min Exi Min Mat Turns Passed 2902 | 119 824 1105 382 335 137 Spaces Moved 1586 | 58 419 626 237 207 39 Core 4 | 3 1 . . . . Treads 1582 | 55 418 626 237 207 39 Legs . | . . . . . . Wheels . | . . . . . . Hover . | . . . . . . Flight . | . . . . . . Fastest Speed 50 | 50 160 160 160 160 160 Average Speed 161 | 154 160 160 160 160 205 Slowest Speed 350 | 160 350 160 160 160 240 Overloaded Moves . | . . . . . . Propulsion Burnouts . | . . . . . . Robots Hopped . | . . . . . . Cave-ins Triggered . | . . . . . . Exploration Rate (%) 47 | 4 65 99 61 50 7 Regions Visited 5 Branch Regions 3 Pre-discovered Areas . | . . . . . . Known Exits Taken . | . . . . . . Unknown Exits Taken 5 | 1 1 1 1 1 . Scrap Searched 2 | . . 2 . . . Spaces Dug . | . . . . . . Terrain Destroyed . | . . . . . . Melee . | . . . . . . Projectile . | . . . . . . AOE . | . . . . . . Terrain Rammed . | . . . . . . Walls Destroyed . | . . . . . . Machines Disabled . | . . . . . . Actions | -11 -10 -10 -10 -9 -8 --------- Run | Yrd Mat Min Exi Min Mat Total 1798 | 74 510 693 240 211 70 Wait 69 | . 25 25 . 4 15 Move 1581 | 57 418 625 236 206 39 Hop . | . . . . . . Pick Up 26 | 2 16 6 1 1 . Fast Attach 12 | 7 3 2 . . . Attach 5 | . 2 1 1 . 1 Detach . | . . . . . . Swap 13 | 1 6 3 1 . 2 Drop 15 | 1 6 7 1 . . Fire 74 | 6 34 21 . . 13 Melee . | . . . . . . Ram . | . . . . . . Kick . | . . . . . . Crush 3 | . . 3 . . . Escape Stasis . | . . . . . . Rewire . | . . . . . . Trap . | . . . . . . Miscellaneous . | . . . . . . Route ------- -11/Scrapyard -10/Materials (discovered 2 exits: [*Mat] / [*Min]) -10/Mines (discovered 3 exits: [*Mat x2] / *Exi) -10/Exiles -9/Mines -8/Materials History --------- Turn | Location | Event 48 | -11/Scrapyard | Discovered new exit (range 15) 120 | -11/Scrapyard | Entered Materials 307 | -10/Materials | Build established: Mutant 483 | -10/Materials | Discovered new exit (range 9) 722 | -10/Materials | Discovered new exit (range 11) 923 | -10/Materials | Central database locked down 944 | -10/Materials | Entered Mines 1120 | -10/Mines | Discovered new exit (range 10) 1212 | -10/Mines | Discovered new exit (range 6) 1231 | -10/Mines | Learned Materials emergency access door positions 1440 | -10/Mines | Build established: Scavenger-Mutant 1515 | -10/Mines | Assisted by bots powering up and referring to "LRC-V3" 1773 | -10/Mines | Learned Materials security intel 2041 | -10/Mines | Deemed a non-threat by the Exiles lab entrance 2043 | -10/Mines | Discovered new exit (range 5) 2049 | -10/Mines | Entered Exiles 2091 | -10/Exiles | Met 8R-AWN 2120 | -10/Exiles | Met EX-HEX 2168 | -10/Exiles | Met EX-BIN 2189 | -10/Exiles | Aligned with FarCom system 2190 | -10/Exiles | Given EX-Vault access code 2227 | -10/Exiles | Opened EX-Vault 2238 | -10/Exiles | Found Skeleton Box 2273 | -10/Exiles | Warned to stay clear of 0b10 Research branches 2324 | -10/Exiles | Met EX-DEC 2406 | -10/Exiles | Discovered new exit (range 14) 2431 | -10/Exiles | Left Exiles lab with Skeleton Box 2431 | -10/Exiles | Entered Mines 2458 | -9/Mines | Met a Derelict bent on vengeance 2463 | -9/Mines | Assembled infested the area 2468 | -9/Mines | Assisted by a Guerilla fighting off Assembled 2541 | -9/Mines | Learned Materials stockpile data 2587 | -9/Mines | A weapon hastily lodged in a ceiling crevice suddenly fell to the ground 2700 | -9/Mines | Discovered new exit (range 14) 2766 | -9/Mines | Entered Materials 2766 | -8/Materials | Evolved 4 slots: Propulsion x2, Utility x2 2903 | -8/Materials | Self-destructed Last Messages --------------- 02799_ G-47 Trooper knocked back. 02802_ G-47 Trooper destroyed. 02805_ G-47 Trooper knocked back. 02807_ Lgt. Treads destroyed. 02808_ G-47 Trooper knocked back. 02811_ Destroyed Imp. Heat Sink. 02818_ G-47 Trooper destroyed. 02821_ Acquired 34 matter. 02824_ Acquired 6 matter. 02882_ Penetrated by Slug. 02882_ K-01 Serf collects debris. 02888_ Slug penetrates Wall. 02889_ K-01 Serf collects debris. 02891_ Penetrated by Slug. 02893_ K-01 Serf collects debris. 02897_ Slug penetrates Wall. 02897_ K-01 Serf collects debris. 02900_ Penetrated by Slug. 02900_ K-01 Serf cleans the Pressure Siphon. 02903_ Penetrated by Slug. Map ----- +----------------------------------------------------+ | ??????#?????# #??????????????????????????????? | | ??????# ????# #??????????????????????????????? | | ??????# #### #??????????????????????????????? | | ??????+ #??????????????????????????????? | | ??????# ##########?????????????????????? | | ??????## ### # #?????????????????????? | | ???????#???# # """ #?????????????????????? | | ???????????# # """ #?????????????????????? | | ???????????# # """ #?????????????????????? | | ???????????#% # #?????????????????????? | | ???????????# %+ """ #?????????????????????? | | ???????????# # """ #?????????????????????? | | ???????????# # """ #?????????????????????? | | ???????????# # #?????????????????????? | | ???????????# #######+##?????????????????????? | | ?????????w?# #?????# #??????????????????????? | | ???????????# #?#####+#####??????????????????? | | ???????????# #?# #???Y??????????????? | | ??????????? ??# #??????????????????? | | ??????????? ??# #??????????????????? | | ??????????? ??# #??????????????????? | | ?????????w? ??# #??????????????????? | | ??????????? ??# #??????????????????? | | ??????????? ??# #??????????????????? | | ??????????? ??# #??????????????????? | | ????????????????#####@#####??????????????????? | | ??????????????????? #??????????????????????? | | ????????????????? #??????????????????????? | | ??????????????? #??????????????????????? | | ????????????? #??????????????????????? | | ??????????Y# ^ ^k #??????????????????????? | | ?????+?????# """ ??????????????????????? | | ???????????# """ a??????????????????????? | | ???????????# ^ """ ??????????????????????? | | ???????????# ??"" ! ??????????????????????? | | ???????????????? ??????????????????????? | | ???????????????? h ??????????????????????? | | ???????????????? ??????????????????????? | | ????????????????" ??????????????????????? | | ????????????????? ??????????????????????? | | ??????????????????? ##??????????????????????? | | ?????????????????????????????????????????????? | | ?????????????????????????????????????????????? | | ?????????????????????????????????????????????? | | ?????????????????????????????????????????????? | | ?????????????????????????????????????????????? | | ?????????????????????????????????????????????? | | ?????????????????????????????????????????????? | | ?????????????????????????????????????????????? | | | +----------------------------------------------------+ Best States ------------- Heat Dissipation 31 Energy Generation 10 Energy Capacity 250 Matter Stores 300 Matter Capacity 300 Sight Range 16 Terrain Scan Density 10 Armor Coverage 150 Evasion (%) 40 Recoil Reduction 2 Item Schematics ----------------- None Robot Schematics ------------------ None Fabricated ------------ Nothing Alien Tech Used ----------------- None Achievements -------------- None Challenges ------------ None Game ------ Seed NeutrinoMinesnifferLog Manual? 0 Play Time 00:24:27 Cumulative 62.4 hours Start 2025.03.26 @ 23:17:53 End 2025.03.26 @ 23:41:24 Sessions 1 Manual Loads 0 Difficulty Rogue Special Mode None Game No. 31 Rogue 30 Adventurer 1 Explorer 0 Win Type - Total 0 Types 0/0/0/0/0/0/0/0/0 Lore% 12 Gallery% 28 Achievement% 30 Wizard Run 0 Options --------- Layout 1 ASCII 0 Keyboard 0 Movement Mouse Keybinds 0 Fullscreen 2 Font 24/Smallcaps Map View 50x35 Zoom Use 0% Tactical HUD 1 Map Filters NONE Filters NONE Steam 1 RUN: 09dd8b77-1346-481e-b384-7950b5abe7d2